[Event "November 21 Early 2023"]
[Site "https://www.chess.com"]
[Date "2023.11.21"]
[Round "9"]
[White "ChainedDowntohell"]
[Black "NovozhilovSemen"]
[Result "0-1"]
[Board "47"]
[TimeControl "180+1"]
[WhiteElo "2590"]
[BlackElo "2751"]
[WhiteClock "0:00:00"]
[BlackClock "0:00:17"]

1. d4 {[%clk 0:02:21]}  Nf6 {[%clk 0:02:59]} 2. c4 {[%clk 0:02:20]}  e6 {[%clk 0:02:58]} 3. Nf3 {[%clk 0:02:19]}  c5 {[%clk 0:02:58]} 4. d5 {[%clk 0:02:18]}  exd5 {[%clk 0:02:59]} 5. cxd5 {[%clk 0:02:19]}  d6 {[%clk 0:03:00]} 6. Nc3 {[%clk 0:02:19]}  g6 {[%clk 0:03:00]} 7. e4 {[%clk 0:02:19]}  Bg7 {[%clk 0:03:01]} 8. Bg5 {[%clk 0:02:19]}  O-O {[%clk 0:03:01]} 9. Nd2 {[%clk 0:02:19]}  h6 {[%clk 0:02:58]} 10. Bh4 {[%clk 0:02:18]}  Nbd7 {[%clk 0:02:53]} 11. Be2 {[%clk 0:02:18]}  a6 {[%clk 0:02:49]} 12. a4 {[%clk 0:02:17]}  Qc7 {[%clk 0:02:49]} 13. O-O {[%clk 0:02:13]}  b6 {[%clk 0:02:32]} 14. h3 {[%clk 0:02:12]}  Bb7 {[%clk 0:02:26]} 15. Qc2 {[%clk 0:02:12]}  Rfc8 {[%clk 0:02:25]} 16. Bg3 {[%clk 0:02:08]}  Ne8 {[%clk 0:02:22]} 17. Kh1 {[%clk 0:02:07]}  Qd8 {[%clk 0:02:19]} 18. Nc4 {[%clk 0:01:55]}  Ne5 {[%clk 0:02:18]} 19. Ne3 {[%clk 0:01:56]}  Nc7 {[%clk 0:02:09]} 20. f4 {[%clk 0:01:55]}  Nd7 {[%clk 0:02:09]} 21. e5 {[%clk 0:01:51]}  dxe5 {[%clk 0:02:06]} 22. f5 {[%clk 0:01:52]}  g5 {[%clk 0:02:00]} 23. f6 {[%clk 0:01:37]}  Nxf6 {[%clk 0:01:59]} 24. Nf5 {[%clk 0:01:34]}  Ncxd5 {[%clk 0:01:35]} 25. Rad1 {[%clk 0:01:31]}  Qc7 {[%clk 0:01:18]} 26. Bf3 {[%clk 0:01:09]}  Nf4 {[%clk 0:01:09]} 27. Bxb7 {[%clk 0:01:04]}  Qxb7 {[%clk 0:01:09]} 28. Nd6 {[%clk 0:00:52]}  Qc6 {[%clk 0:01:05]} 29. Nxc8 {[%clk 0:00:48]}  Rxc8 {[%clk 0:01:06]} 30. Bxf4 {[%clk 0:00:42]}  exf4 {[%clk 0:01:04]} 31. Qf5 {[%clk 0:00:42]}  Nh5 {[%clk 0:00:58]} 32. Ne4 {[%clk 0:00:23]}  Re8 {[%clk 0:00:40]} 33. Qg4 {[%clk 0:00:14]}  Qg6 {[%clk 0:00:40]} 34. Nd6 {[%clk 0:00:07]}  Ng3+ {[%clk 0:00:39]} 35. Kg1 {[%clk 0:00:06]}  Rd8 {[%clk 0:00:32]} 36. Rfe1 {[%clk 0:00:04]}  Rxd6 {[%clk 0:00:29]} 37. Re8+ {[%clk 0:00:02]}  Kh7 {[%clk 0:00:30]} 38. Rde1 {[%clk 0:00:02]}  Re6 {[%clk 0:00:20]} 39. R8xe6 {[%clk 0:00:02]}  fxe6 {[%clk 0:00:21]} 40. Qf3 {[%clk 0:00:02]}  Bxb2 {[%clk 0:00:18]} 41. Qb7+ {[%clk 0:00:02]}  Bg7 {[%clk 0:00:18]} 42. Qxb6 {[%clk 0:00:02]}  e5 {[%clk 0:00:17]} 43. Qxc5 {[%clk 0:00:01]}  e4 {[%clk 0:00:17]} 44. Qd5 {[%clk 0:00:01]}  e3 {[%clk 0:00:18]} 45. Rc1 {[%clk 0:00:01]}  e2 {[%clk 0:00:17]} 46. Re1 {[%clk 0:00:00]}  Qb6+ {[%clk 0:00:17]} 0-1

[Event "November 21 Early 2023"]
[Site "https://www.chess.com"]
[Date "2023.11.21"]
[Round "9"]
[White "Malyi, Viacheslav"]
[Black "Tatarinov, Dmitry"]
[Result "0-1"]
[Board "49"]
[TimeControl "180+1"]
[WhiteFideId "14123983"]
[BlackFideId "24160067"]
[WhiteElo "2291"]
[BlackElo "2344"]
[WhiteTeam "UKR"]
[BlackTeam "RUS"]
[WhiteClock "0:00:03"]
[BlackClock "0:00:13"]

1. e4 {[%clk 0:03:00]}  c5 {[%clk 0:02:52]} 2. Nf3 {[%clk 0:03:00]}  e6 {[%clk 0:02:52]} 3. g3 {[%clk 0:02:59]}  Nc6 {[%clk 0:02:52]} 4. Bg2 {[%clk 0:02:58]}  Nf6 {[%clk 0:02:52]} 5. Qe2 {[%clk 0:02:58]}  d5 {[%clk 0:02:53]} 6. e5 {[%clk 0:02:58]}  Nd7 {[%clk 0:02:52]} 7. O-O {[%clk 0:02:58]}  Be7 {[%clk 0:02:52]} 8. Re1 {[%clk 0:02:59]}  Qc7 {[%clk 0:02:45]} 9. h4 {[%clk 0:02:58]}  a5 {[%clk 0:02:36]} 10. d3 {[%clk 0:02:57]}  a4 {[%clk 0:02:36]} 11. c4 {[%clk 0:02:53]}  d4 {[%clk 0:02:16]} 12. Bf4 {[%clk 0:02:50]}  h6 {[%clk 0:02:11]} 13. h5 {[%clk 0:02:49]}  O-O {[%clk 0:02:02]} 14. Nbd2 {[%clk 0:02:46]}  Rb8 {[%clk 0:02:01]} 15. Nf1 {[%clk 0:02:45]}  b5 {[%clk 0:01:59]} 16. b3 {[%clk 0:02:45]}  Ba6 {[%clk 0:01:53]} 17. N1h2 {[%clk 0:02:43]}  Rfc8 {[%clk 0:01:46]} 18. Ng4 {[%clk 0:02:43]}  Bf8 {[%clk 0:01:46]} 19. Qd2 {[%clk 0:02:41]}  Qa5 {[%clk 0:01:43]} 20. Qc1 {[%clk 0:02:39]}  Qc3 {[%clk 0:01:40]} 21. Bxh6 {[%clk 0:02:10]}  gxh6 {[%clk 0:01:25]} 22. Nxh6+ {[%clk 0:02:11]}  Kh7 {[%clk 0:01:23]} 23. Qf4 {[%clk 0:02:07]}  Bxh6 {[%clk 0:01:00]} 24. Qxf7+ {[%clk 0:02:06]}  Kh8 {[%clk 0:01:00]} 25. Qg6 {[%clk 0:01:43]}  Bd2 {[%clk 0:00:42]} 26. Ng5 {[%clk 0:01:06]}  Bxg5 {[%clk 0:00:42]} 27. Be4 {[%clk 0:01:06]}  Nf8 {[%clk 0:00:35]} 28. Qxg5 {[%clk 0:01:06]}  Rc7 {[%clk 0:00:28]} 29. Qf6+ {[%clk 0:00:48]}  Kg8 {[%clk 0:00:28]} 30. h6 {[%clk 0:00:48]}  Rf7 {[%clk 0:00:16]} 31. Qg5+ {[%clk 0:00:43]}  Kh8 {[%clk 0:00:16]} 32. Bxc6 {[%clk 0:00:38]}  Qxd3 {[%clk 0:00:17]} 33. Be4 {[%clk 0:00:39]}  Qc3 {[%clk 0:00:17]} 34. h7 {[%clk 0:00:28]}  Rg7 {[%clk 0:00:16]} 35. Qf6 {[%clk 0:00:22]}  Qa5 {[%clk 0:00:15]} 36. Kg2 {[%clk 0:00:19]}  Qd8 {[%clk 0:00:15]} 37. Qf4 {[%clk 0:00:19]}  Qe7 {[%clk 0:00:15]} 38. Rh1 {[%clk 0:00:19]}  Nd7 {[%clk 0:00:15]} 39. Rh6 {[%clk 0:00:19]}  Rf8 {[%clk 0:00:15]} 40. Qd2 {[%clk 0:00:09]}  bxc4 {[%clk 0:00:15]} 41. bxc4 {[%clk 0:00:10]}  Bxc4 {[%clk 0:00:16]} 42. Rah1 {[%clk 0:00:10]}  Nxe5 {[%clk 0:00:16]} 43. R1h5 {[%clk 0:00:10]}  Nd7 {[%clk 0:00:14]} 44. Rg6 {[%clk 0:00:10]}  Nf6 {[%clk 0:00:13]} 45. Bf3 {[%clk 0:00:09]}  Rxg6 {[%clk 0:00:13]} 46. Rh4 {[%clk 0:00:03]}  Bd5 {[%clk 0:00:13]} 47. Bxd5 {[%clk 0:00:03]}  Nxd5 {[%clk 0:00:13]} 48. Qf4 {[%clk 0:00:03]}  Nxf4+ {[%clk 0:00:13]} 0-1

[Event "November 21 Early 2023"]
[Site "https://www.chess.com"]
[Date "2023.11.21"]
[Round "9"]
[White "Goltsev, Dmitry"]
[Black "aghasiyevkamal"]
[Result "0-1"]
[Board "50"]
[TimeControl "180+1"]
[WhiteFideId "24176710"]
[WhiteElo "2370"]
[BlackElo "2553"]
[WhiteTeam "RUS"]
[WhiteClock "0:00:02"]
[BlackClock "0:00:07"]

1. e4 {[%clk 0:02:28]}  e6 {[%clk 0:02:58]} 2. d4 {[%clk 0:02:26]}  d5 {[%clk 0:02:58]} 3. exd5 {[%clk 0:02:27]}  exd5 {[%clk 0:02:58]} 4. Nf3 {[%clk 0:02:28]}  Nf6 {[%clk 0:02:53]} 5. c4 {[%clk 0:02:29]}  Bb4+ {[%clk 0:02:48]} 6. Nc3 {[%clk 0:02:28]}  O-O {[%clk 0:02:47]} 7. Be2 {[%clk 0:02:25]}  dxc4 {[%clk 0:02:46]} 8. Bxc4 {[%clk 0:02:25]}  Nc6 {[%clk 0:02:41]} 9. O-O {[%clk 0:02:19]}  Bg4 {[%clk 0:02:40]} 10. Bg5 {[%clk 0:02:19]}  h6 {[%clk 0:02:32]} 11. Bh4 {[%clk 0:02:18]}  Be7 {[%clk 0:02:31]} 12. h3 {[%clk 0:02:15]}  Bxf3 {[%clk 0:02:25]} 13. Qxf3 {[%clk 0:02:16]}  Qxd4 {[%clk 0:02:25]} 14. Bxf6 {[%clk 0:02:17]}  Bxf6 {[%clk 0:02:19]} 15. Bd5 {[%clk 0:02:18]}  Ne5 {[%clk 0:01:48]} 16. Qg3 {[%clk 0:02:12]}  Bh4 {[%clk 0:01:37]} 17. Qh2 {[%clk 0:02:05]}  Nd3 {[%clk 0:01:20]} 18. g3 {[%clk 0:01:52]}  c6 {[%clk 0:01:17]} 19. Bb3 {[%clk 0:01:48]}  Bf6 {[%clk 0:01:05]} 20. Rad1 {[%clk 0:01:46]}  Rad8 {[%clk 0:01:03]} 21. Rd2 {[%clk 0:01:37]}  Qb6 {[%clk 0:00:48]} 22. Ne4 {[%clk 0:01:33]}  Bxb2 {[%clk 0:00:39]} 23. Rfd1 {[%clk 0:01:29]}  Ne5 {[%clk 0:00:39]} 24. Qg2 {[%clk 0:01:15]}  Rxd2 {[%clk 0:00:37]} 25. Rxd2 {[%clk 0:01:16]}  Bd4 {[%clk 0:00:38]} 26. Kh2 {[%clk 0:01:11]}  c5 {[%clk 0:00:34]} 27. f4 {[%clk 0:01:09]}  Nd7 {[%clk 0:00:32]} 28. Qf3 {[%clk 0:01:05]}  Qc6 {[%clk 0:00:24]} 29. Qd3 {[%clk 0:00:54]}  Re8 {[%clk 0:00:23]} 30. Bc2 {[%clk 0:00:53]}  Nf8 {[%clk 0:00:21]} 31. Qc4 {[%clk 0:00:45]}  Rxe4 {[%clk 0:00:20]} 32. Bxe4 {[%clk 0:00:44]}  Qxe4 {[%clk 0:00:21]} 33. Qf1 {[%clk 0:00:42]}  Ne6 {[%clk 0:00:17]} 34. Re2 {[%clk 0:00:41]}  Qd3 {[%clk 0:00:17]} 35. Qe1 {[%clk 0:00:39]}  Kh7 {[%clk 0:00:15]} 36. h4 {[%clk 0:00:30]}  c4 {[%clk 0:00:15]} 37. h5 {[%clk 0:00:23]}  Qf5 {[%clk 0:00:14]} 38. Re4 {[%clk 0:00:19]}  Qxh5+ {[%clk 0:00:14]} 39. Kg2 {[%clk 0:00:20]}  Qd5 {[%clk 0:00:13]} 40. Kh2 {[%clk 0:00:20]}  c3 {[%clk 0:00:13]} 41. Qb1 {[%clk 0:00:15]}  g6 {[%clk 0:00:10]} 42. g4 {[%clk 0:00:15]}  Nc5 {[%clk 0:00:09]} 43. Re7 {[%clk 0:00:13]}  Qc4 {[%clk 0:00:09]} 44. Qc2 {[%clk 0:00:11]}  Kg7 {[%clk 0:00:07]} 45. f5 {[%clk 0:00:07]}  Qd3 {[%clk 0:00:07]} 46. Qg2 {[%clk 0:00:06]}  Bf6 {[%clk 0:00:07]} 47. Rc7 {[%clk 0:00:03]}  Qd6+ {[%clk 0:00:07]} 48. Qg3 {[%clk 0:00:03]}  Be5 {[%clk 0:00:07]} 49. Rxf7+ {[%clk 0:00:02]}  Kxf7 {[%clk 0:00:07]} 0-1

[Event "November 21 Early 2023"]
[Site "https://www.chess.com"]
[Date "2023.11.21"]
[Round "9"]
[White "Matinian, Nikita"]
[Black "Graca, Robert"]
[Result "1-0"]
[Board "52"]
[TimeControl "180+1"]
[WhiteFideId "24129100"]
[BlackFideId "644943"]
[WhiteElo "2417"]
[BlackElo "2204"]
[WhiteTeam "FID"]
[BlackTeam "FRA"]
[WhiteClock "0:00:29"]
[BlackClock "0:00:03"]

1. e4 {[%clk 0:03:00]}  c5 {[%clk 0:02:55]} 2. Nc3 {[%clk 0:02:59]}  Nc6 {[%clk 0:02:55]} 3. Bb5 {[%clk 0:03:00]}  Na5 {[%clk 0:02:55]} 4. Bf1 {[%clk 0:02:58]}  e6 {[%clk 0:02:52]} 5. Nf3 {[%clk 0:02:56]}  a6 {[%clk 0:02:49]} 6. d4 {[%clk 0:02:54]}  cxd4 {[%clk 0:02:50]} 7. Nxd4 {[%clk 0:02:54]}  Qc7 {[%clk 0:02:51]} 8. Bd3 {[%clk 0:02:48]}  d6 {[%clk 0:02:42]} 9. Qe2 {[%clk 0:02:45]}  Be7 {[%clk 0:02:39]} 10. Bd2 {[%clk 0:02:43]}  Nf6 {[%clk 0:02:38]} 11. f4 {[%clk 0:02:40]}  b5 {[%clk 0:02:23]} 12. e5 {[%clk 0:02:39]}  dxe5 {[%clk 0:02:20]} 13. fxe5 {[%clk 0:02:40]}  Nd7 {[%clk 0:02:20]} 14. Nxe6 {[%clk 0:01:36]}  fxe6 {[%clk 0:02:08]} 15. Qh5+ {[%clk 0:01:36]}  Kd8 {[%clk 0:01:54]} 16. O-O-O {[%clk 0:01:36]}  Qxe5 {[%clk 0:01:45]} 17. Qh3 {[%clk 0:00:54]}  Bg5 {[%clk 0:01:21]} 18. Bxg5+ {[%clk 0:00:46]}  Qxg5+ {[%clk 0:01:22]} 19. Kb1 {[%clk 0:00:47]}  Qh6 {[%clk 0:01:12]} 20. Qg3 {[%clk 0:00:47]}  Bb7 {[%clk 0:00:43]} 21. Be4 {[%clk 0:00:46]}  Bxe4 {[%clk 0:00:39]} 22. Nxe4 {[%clk 0:00:47]}  Nb7 {[%clk 0:00:29]} 23. Rhf1 {[%clk 0:00:33]}  Qg6 {[%clk 0:00:25]} 24. Qxg6 {[%clk 0:00:31]}  hxg6 {[%clk 0:00:26]} 25. Rf7 {[%clk 0:00:31]}  Ke8 {[%clk 0:00:12]} 26. Rdxd7 {[%clk 0:00:30]}  Rxh2 {[%clk 0:00:07]} 27. b3 {[%clk 0:00:30]}  Na5 {[%clk 0:00:03]} 28. Nd6# {[%clk 0:00:29]} 1-0

[Event "November 21 Early 2023"]
[Site "https://www.chess.com"]
[Date "2023.11.21"]
[Round "9"]
[White "Panda Sambit"]
[Black "Pourramezanali, Amirreza"]
[Result "0-1"]
[Board "53"]
[TimeControl "180+1"]
[WhiteFideId "25091794"]
[BlackFideId "12511412"]
[WhiteElo "2216"]
[BlackElo "2302"]
[WhiteTeam "IND"]
[BlackTeam "IRI"]
[WhiteClock "0:00:06"]
[BlackClock "0:00:27"]

1. d4 {[%clk 0:02:56]}  d5 {[%clk 0:02:59]} 2. Nf3 {[%clk 0:02:54]}  Nf6 {[%clk 0:02:58]} 3. Bf4 {[%clk 0:02:54]}  Bf5 {[%clk 0:02:54]} 4. e3 {[%clk 0:02:54]}  e6 {[%clk 0:02:54]} 5. c4 {[%clk 0:02:51]}  Nc6 {[%clk 0:02:54]} 6. Nc3 {[%clk 0:02:50]}  Nb4 {[%clk 0:02:53]} 7. Rc1 {[%clk 0:02:49]}  c6 {[%clk 0:02:52]} 8. a3 {[%clk 0:02:47]}  Na6 {[%clk 0:02:52]} 9. cxd5 {[%clk 0:02:44]}  exd5 {[%clk 0:02:51]} 10. Bxa6 {[%clk 0:02:44]}  bxa6 {[%clk 0:02:50]} 11. Ne5 {[%clk 0:02:44]}  Rc8 {[%clk 0:02:43]} 12. Qa4 {[%clk 0:02:23]}  Qb6 {[%clk 0:02:30]} 13. Bg5 {[%clk 0:01:59]}  Bd6 {[%clk 0:02:08]} 14. Bxf6 {[%clk 0:01:48]}  gxf6 {[%clk 0:02:08]} 15. Nxd5 {[%clk 0:01:46]}  Qxb2 {[%clk 0:01:44]} 16. Rxc6 {[%clk 0:00:55]}  O-O {[%clk 0:01:23]} 17. Nxf6+ {[%clk 0:00:55]}  Kh8 {[%clk 0:01:12]} 18. O-O {[%clk 0:00:41]}  Bxe5 {[%clk 0:01:04]} 19. dxe5 {[%clk 0:00:41]}  Qxe5 {[%clk 0:01:04]} 20. Rxc8 {[%clk 0:00:35]}  Rxc8 {[%clk 0:00:57]} 21. Qh4 {[%clk 0:00:15]}  Rc6 {[%clk 0:00:49]} 22. Nd7 {[%clk 0:00:13]}  Bxd7 {[%clk 0:00:46]} 23. Rd1 {[%clk 0:00:12]}  Rd6 {[%clk 0:00:40]} 24. Qd8+ {[%clk 0:00:11]}  Kg7 {[%clk 0:00:39]} 25. Rxd6 {[%clk 0:00:10]}  Qxd6 {[%clk 0:00:40]} 26. Qg5+ {[%clk 0:00:11]}  Qg6 {[%clk 0:00:37]} 27. Qe5+ {[%clk 0:00:11]}  Kf8 {[%clk 0:00:31]} 28. Qc5+ {[%clk 0:00:07]}  Ke8 {[%clk 0:00:29]} 29. Qe5+ {[%clk 0:00:06]}  Qe6 {[%clk 0:00:29]} 30. Qb8+ {[%clk 0:00:06]}  Ke7 {[%clk 0:00:30]} 31. Qxa7 {[%clk 0:00:06]}  Qd5 {[%clk 0:00:28]} 32. h3 {[%clk 0:00:04]}  Qd1+ {[%clk 0:00:27]} 33. Kh2 {[%clk 0:00:04]}  Qd6+ {[%clk 0:00:28]} 34. Kg1 {[%clk 0:00:03]}  Kf8 {[%clk 0:00:27]} 35. Qa8+ {[%clk 0:00:03]}  Kg7 {[%clk 0:00:27]} 36. Qe4 {[%clk 0:00:04]}  Bc6 {[%clk 0:00:27]} 37. Qg4+ {[%clk 0:00:04]}  Kf6 {[%clk 0:00:27]} 38. Qh4+ {[%clk 0:00:04]}  Kg7 {[%clk 0:00:25]} 39. Qg5+ {[%clk 0:00:04]}  Kf8 {[%clk 0:00:25]} 40. Qh4 {[%clk 0:00:04]}  h6 {[%clk 0:00:25]} 41. Qb4 {[%clk 0:00:03]}  Ke7 {[%clk 0:00:24]} 42. Qh4+ {[%clk 0:00:02]}  Kf8 {[%clk 0:00:23]} 43. Qg4 {[%clk 0:00:02]}  Qd5 {[%clk 0:00:21]} 44. Qc8+ {[%clk 0:00:02]}  Kg7 {[%clk 0:00:21]} 45. Qg4+ {[%clk 0:00:03]}  Kh7 {[%clk 0:00:21]} 46. Qg3 {[%clk 0:00:02]}  a5 {[%clk 0:00:20]} 47. Kh2 {[%clk 0:00:02]}  a4 {[%clk 0:00:21]} 48. f3 {[%clk 0:00:03]}  Bd7 {[%clk 0:00:20]} 49. Qf4 {[%clk 0:00:02]}  Qe6 {[%clk 0:00:18]} 50. e4 {[%clk 0:00:02]}  Kg7 {[%clk 0:00:18]} 51. Qg3+ {[%clk 0:00:02]}  Kf8 {[%clk 0:00:18]} 52. Qb8+ {[%clk 0:00:03]}  Ke7 {[%clk 0:00:19]} 53. Qb4+ {[%clk 0:00:03]}  Qd6+ {[%clk 0:00:19]} 54. Qxd6+ {[%clk 0:00:04]}  Kxd6 {[%clk 0:00:20]} 55. Kg3 {[%clk 0:00:04]}  Ke5 {[%clk 0:00:21]} 56. Kf2 {[%clk 0:00:04]}  Kd4 {[%clk 0:00:21]} 57. Kg3 {[%clk 0:00:04]}  Kc3 {[%clk 0:00:22]} 58. Kh4 {[%clk 0:00:05]}  Kb3 {[%clk 0:00:22]} 59. Kh5 {[%clk 0:00:05]}  Kxa3 {[%clk 0:00:23]} 60. Kxh6 {[%clk 0:00:06]}  Kb3 {[%clk 0:00:24]} 61. Kg5 {[%clk 0:00:06]}  a3 {[%clk 0:00:25]} 62. Kf6 {[%clk 0:00:06]}  a2 {[%clk 0:00:25]} 63. Kxf7 {[%clk 0:00:07]}  a1=Q {[%clk 0:00:26]} 64. Ke7 {[%clk 0:00:06]}  Qg7+ {[%clk 0:00:27]} 0-1

[Event "November 21 Early 2023"]
[Site "https://www.chess.com"]
[Date "2023.11.21"]
[Round "9"]
[White "Timerkhanov, Alexander"]
[Black "Mazurkiewicz, Michal"]
[Result "0-1"]
[Board "54"]
[TimeControl "180+1"]
[WhiteFideId "24177938"]
[BlackFideId "1124943"]
[WhiteElo "2278"]
[BlackElo "2124"]
[WhiteTeam "RUS"]
[BlackTeam "POL"]
[WhiteClock "0:00:49"]
[BlackClock "0:00:07"]

1. d4 {[%clk 0:03:00]}  Nf6 {[%clk 0:02:59]} 2. Bg5 {[%clk 0:03:00]}  e6 {[%clk 0:02:59]} 3. Nd2 {[%clk 0:03:00]}  d5 {[%clk 0:02:58]} 4. e3 {[%clk 0:03:00]}  Be7 {[%clk 0:02:57]} 5. Bd3 {[%clk 0:03:00]}  b6 {[%clk 0:02:57]} 6. Ngf3 {[%clk 0:03:00]}  c5 {[%clk 0:02:56]} 7. c3 {[%clk 0:02:59]}  O-O {[%clk 0:02:53]} 8. Ne5 {[%clk 0:03:00]}  Bb7 {[%clk 0:02:39]} 9. Bxf6 {[%clk 0:02:58]}  Bxf6 {[%clk 0:02:38]} 10. f4 {[%clk 0:02:58]}  Bxe5 {[%clk 0:02:27]} 11. fxe5 {[%clk 0:02:59]}  Qg5 {[%clk 0:02:25]} 12. Qe2 {[%clk 0:02:56]}  a5 {[%clk 0:02:19]} 13. O-O {[%clk 0:02:53]}  Ba6 {[%clk 0:02:18]} 14. Rf3 {[%clk 0:02:53]}  Bxd3 {[%clk 0:02:14]} 15. Qxd3 {[%clk 0:02:54]}  c4 {[%clk 0:02:00]} 16. Qe2 {[%clk 0:02:50]}  Nc6 {[%clk 0:01:54]} 17. Rg3 {[%clk 0:02:44]}  Qh6 {[%clk 0:01:04]} 18. e4 {[%clk 0:02:41]}  b5 {[%clk 0:00:51]} 19. exd5 {[%clk 0:02:37]}  exd5 {[%clk 0:00:51]} 20. Nf1 {[%clk 0:02:26]}  f6 {[%clk 0:00:41]} 21. e6 {[%clk 0:02:09]}  Rae8 {[%clk 0:00:36]} 22. Re1 {[%clk 0:02:08]}  Ne7 {[%clk 0:00:20]} 23. Qf3 {[%clk 0:02:00]}  f5 {[%clk 0:00:20]} 24. Re5 {[%clk 0:01:45]}  Qc1 {[%clk 0:00:17]} 25. h4 {[%clk 0:01:40]}  Qxb2 {[%clk 0:00:16]} 26. Qh5 {[%clk 0:01:37]}  g6 {[%clk 0:00:15]} 27. Qh6 {[%clk 0:01:36]}  Rf6 {[%clk 0:00:14]} 28. h5 {[%clk 0:01:18]}  b4 {[%clk 0:00:14]} 29. hxg6 {[%clk 0:01:18]}  Rxg6 {[%clk 0:00:14]} 30. Rxg6+ {[%clk 0:01:15]}  hxg6 {[%clk 0:00:14]} 31. cxb4 {[%clk 0:01:13]}  Qxd4+ {[%clk 0:00:13]} 32. Re3 {[%clk 0:01:10]}  f4 {[%clk 0:00:12]} 33. Qh4 {[%clk 0:01:06]}  Nf5 {[%clk 0:00:10]} 34. Qg4 {[%clk 0:01:04]}  fxe3 {[%clk 0:00:08]} 35. Qxg6+ {[%clk 0:01:04]}  Ng7 {[%clk 0:00:08]} 36. Qf7+ {[%clk 0:01:01]}  Kh7 {[%clk 0:00:07]} 37. Kh2 {[%clk 0:00:49]}  e2 {[%clk 0:00:07]} 0-1

[Event "November 21 Early 2023"]
[Site "https://www.chess.com"]
[Date "2023.11.21"]
[Round "9"]
[White "secrethawk1"]
[Black "Ahmad, Khagan"]
[Result "0-1"]
[Board "56"]
[TimeControl "180+1"]
[BlackFideId "13431552"]
[WhiteElo "2419"]
[BlackElo "2160"]
[BlackTeam "AZE"]
[WhiteClock "0:00:05"]
[BlackClock "0:00:24"]

1. d4 {[%clk 0:03:00]}  d5 {[%clk 0:02:58]} 2. Bf4 {[%clk 0:03:00]}  Nf6 {[%clk 0:02:55]} 3. e3 {[%clk 0:02:59]}  c5 {[%clk 0:02:54]} 4. c3 {[%clk 0:02:57]}  Nc6 {[%clk 0:02:53]} 5. Nd2 {[%clk 0:02:55]}  Bf5 {[%clk 0:02:50]} 6. Ngf3 {[%clk 0:02:27]}  e6 {[%clk 0:02:47]} 7. Be2 {[%clk 0:02:17]}  Bd6 {[%clk 0:02:46]} 8. Bg3 {[%clk 0:02:16]}  Qc7 {[%clk 0:02:29]} 9. dxc5 {[%clk 0:02:12]}  Bxg3 {[%clk 0:02:28]} 10. hxg3 {[%clk 0:02:13]}  O-O {[%clk 0:02:20]} 11. Nd4 {[%clk 0:02:00]}  a5 {[%clk 0:02:16]} 12. Nxf5 {[%clk 0:01:57]}  exf5 {[%clk 0:02:16]} 13. Nf3 {[%clk 0:01:53]}  g6 {[%clk 0:02:01]} 14. Qc2 {[%clk 0:01:32]}  Rfe8 {[%clk 0:01:50]} 15. O-O {[%clk 0:01:27]}  Ng4 {[%clk 0:01:34]} 16. Rfd1 {[%clk 0:01:17]}  Rad8 {[%clk 0:00:59]} 17. Rac1 {[%clk 0:01:13]}  Nce5 {[%clk 0:00:50]} 18. b4 {[%clk 0:01:06]}  Nxf2 {[%clk 0:00:48]} 19. Nxe5 {[%clk 0:00:36]}  Nxd1 {[%clk 0:00:48]} 20. Rxd1 {[%clk 0:00:26]}  Qxe5 {[%clk 0:00:47]} 21. Bf3 {[%clk 0:00:24]}  Qxe3+ {[%clk 0:00:45]} 22. Kh2 {[%clk 0:00:23]}  f4 {[%clk 0:00:30]} 23. g4 {[%clk 0:00:22]}  d4 {[%clk 0:00:24]} 24. cxd4 {[%clk 0:00:11]}  Rxd4 {[%clk 0:00:24]} 25. Rxd4 {[%clk 0:00:10]}  Qxd4 {[%clk 0:00:25]} 26. Bxb7 {[%clk 0:00:09]}  Re1 {[%clk 0:00:24]} 27. c6 {[%clk 0:00:06]}  Qg1+ {[%clk 0:00:23]} 28. Kh3 {[%clk 0:00:05]}  Qh1# {[%clk 0:00:24]} 0-1